bitfinex/quotes_ETHUSD_20250806
["timestamp","ask_amount","ask_price","bid_price","bid_amount"]
[1754493571026,4.295,3635.2,3634.8,3.79603117]
[1754493571227,4.295,3635.2,3634.9,0.4629]
[1754493571550,4.295,3635.2,3635.1,0.1376]
[1754493573874,4.295,3635.2,3635.1,2.88855595]
[1754493574334,4.295,3635.2,3635.1,1.0449]
[1754493574526,4.295,3635.2,3635.1,3.79585595]
[1754493574880,0.001,3635.9,3635.4,2.75072894]
[1754493575165,0.001,3635.9,3635.7,2.75050196]
[1754493575166,4.294,3635.8,3635.7,2.75050196]
[1754493575367,4.294,3635.8,3635.6,2.75054493]
[1754493575531,4.294,3635.8,3635.7,0.1376]
[1754493575730,4.294,3635.8,3634.9,0.9073]
[1754493575731,4.7285,3635.8,3635.1,2.75091957]
[1754493575971,4.7285,3635.8,3635.3,0.1376]
[1754493575972,4.4316,3635.8,3635.3,0.1376]
[1754493576280,4.294,3635.8,3634.6,0.02751334]
[1754493576443,4.294,3635.8,3634.8,0.4444]
[1754493576643,0.1376,3635.7,3635.2,0.1376]
[1754493577069,0.4839,3635.6,3635.2,0.1376]
[1754493577250,4.7769,3635.5,3635.2,0.1376]
[1754493577583,4.293,3635.5,3635.2,0.1376]
[1754493579452,0.4839,3635.4,3635.2,0.1376]
[1754493579774,4.293,3635.5,3635.2,0.1376]
[1754493580278,0.4839,3635.3,3635.2,0.1376]
[1754493580780,0.4839,3635.3,3634.6,0.4629]
[1754493580975,4.293,3635.2,3635.0,0.1376]
[1754493583660,4.7769,3635.2,3635.0,0.1376]
[1754493583859,0.4839,3635.1,3635.0,0.1376]
[1754493584661,4.293,3635.2,3635.0,0.1376]
[1754493585198,4.7769,3635.2,3635.0,0.1376]
[1754493585890,4.293,3635.2,3635.0,0.1376]
[1754493586092,4.7769,3635.2,3635.0,0.1376]
[1754493586409,4.7779,3635.2,3635.0,0.1376]
[1754493586749,0.4839,3635.1,3635.0,0.1376]
[1754493586993,0.9184,3635.1,3635.0,0.1376]
[1754493587448,4.294,3635.2,3635.0,0.1376]
[1754493587656,4.294,3635.2,3635.0,1.0449]
[1754493587900,4.294,3635.2,3635.1,3.65825595]
[1754493587901,0.001,3635.2,3635.1,3.65825595]
[1754493588096,4.293,3635.2,3635.1,3.65825595]
[1754493588301,0.001,3635.2,3635.1,4.31295168]
[1754493588463,0.001,3635.2,3635.1,4.45055168]
[1754493589203,0.001,3635.2,3635.1,4.47806123]
[1754493589713,0.001,3635.9,3635.8,2.75042631]
[1754493590002,0.001,3635.9,3635.8,3.43811994]
[1754493590293,0.001,3635.9,3635.8,4.34541994]
[1754493591455,0.001,3635.9,3635.8,3.90101994]
[1754493591880,0.001,3635.9,3635.8,4.36361994]
[1754493593193,0.001,3635.9,3635.8,3.43811994]
[1754493593573,0.001,3635.9,3635.8,3.91591994]
[1754493594502,0.001,3635.9,3635.8,3.43811994]
[1754493594899,0.001,3635.9,3635.8,2.88802631]
[1754493595215,0.4964,3635.9,3635.8,0.1376]
[1754493597321,0.001,3635.9,3635.8,0.1376]
[1754493597479,0.001,3635.9,3635.8,3.85593057]
[1754493597678,0.001,3635.9,3635.8,3.82842631]
[1754493597878,0.001,3635.9,3635.8,4.48632106]
[1754493598920,0.001,3635.9,3635.8,3.54592106]
[1754493599213,0.001,3635.9,3635.8,4.48632106]
[1754493600278,0.001,3635.9,3635.8,3.54592106]
[1754493600681,0.001,3635.9,3635.8,4.48632106]
[1754493602211,0.001,3635.9,3635.8,4.51382532]
[1754493602413,0.001,3635.9,3635.8,4.48632106]
[1754493606024,0.001,3635.9,3635.8,8.77432106]
[1754493610221,0.001,3635.9,3635.8,3.54592106]
[1754493610939,0.9276,3635.9,3635.8,2.88802631]
[1754493611424,0.001,3635.9,3635.8,2.88802631]
[1754493612637,0.4964,3635.9,3635.8,2.88802631]
[1754493613320,0.001,3635.9,3635.8,2.88802631]
[1754493613519,0.001,3635.9,3635.8,3.82842631]
[1754493613908,0.001,3635.9,3635.8,2.88802631]
[1754493614252,0.9276,3635.9,3635.8,0.1376]
[1754493614619,0.9276,3635.9,3635.2,4.286]
[1754493614818,0.001,3635.9,3635.7,0.1376]
[1754493615031,0.9266,3635.8,3635.7,0.1376]
[1754493615746,0.001,3635.9,3635.7,0.1376]
[1754493616031,0.001,3635.9,3635.7,2.88806726]
[1754493616188,0.001,3635.9,3635.8,2.75042631]
[1754493616484,0.4964,3635.9,3635.7,0.1376]
[1754493616686,0.001,3635.9,3635.7,0.1376]
[1754493616853,0.4954,3635.8,3635.7,0.1376]
[1754493617059,0.9266,3635.8,3635.7,0.1376]
[1754493618440,0.9266,3635.8,3635.1,2.75089963]
[1754493618644,0.001,3635.9,3635.5,0.1376]
[1754493618645,0.9266,3635.7,3635.5,0.1376]
[1754493618884,0.9266,3635.6,3635.5,0.1376]
[1754493619194,0.9266,3635.6,3635.0,2.75102841]
[1754493619341,0.4954,3635.5,3635.3,0.1376]
[1754493619546,0.9266,3635.5,3635.3,0.1376]
[1754493619841,0.4312,3635.4,3635.3,0.1376]
[1754493620041,0.9266,3635.4,3635.3,0.1376]
[1754493620344,0.9266,3635.4,3635.3,2.88840461]
[1754493620544,0.9266,3635.4,3635.3,0.1376]
[1754493621093,0.4319,3635.9,3635.5,2.75058729]
[1754493621260,0.9302,3635.8,3635.5,2.88823487]
[1754493621460,0.4993,3635.7,3635.5,0.1376]
[1754493621677,0.4993,3635.7,3634.7,2.75121214]
[1754493621678,0.9302,3635.7,3635.1,2.75092101]
[1754493621862,3.001,3635.9,3635.4,0.1376]
[1754493622057,0.9302,3635.6,3635.4,0.1376]
[1754493622255,3.4319,3635.9,3635.4,2.88831721]
[1754493622462,0.4993,3635.8,3635.6,0.1376]
[1754493622661,0.9302,3635.8,3635.6,0.1376]
[1754493622873,0.4993,3635.7,3635.6,0.1376]
[1754493623546,0.4993,3635.7,3635.6,2.88817762]
[1754493623746,0.4993,3635.7,3635.6,0.1376]
[1754493623987,0.4993,3635.7,3635.6,2.88817762]
[1754493624342,0.001,3635.9,3635.8,2.75042631]
[1754493625163,0.9312,3635.9,3635.7,2.75047079]
[1754493625343,0.9302,3635.8,3635.7,2.75047079]
[1754493626953,0.9302,3635.8,3635.6,2.88814205]
[1754493627289,0.4309,3635.8,3635.7,2.75050196]
[1754493627779,0.001,3635.9,3635.7,2.750474]
[1754493628100,0.4319,3635.9,3635.7,2.750474]
[1754493628315,0.9302,3635.8,3635.7,2.750474]
[1754493628813,0.4993,3635.8,3635.7,2.750474]
[1754493629113,0.001,3635.9,3635.7,2.75047723]
[1754493629292,0.9302,3635.8,3635.6,0.1376]
[1754493629479,0.001,3635.9,3635.6,2.88816732]
[1754493629669,0.9302,3635.7,3635.6,2.88816732]
[1754493630087,0.4993,3635.7,3635.6,2.88816732]
[1754493630266,0.5003,3635.9,3635.8,2.75042631]
[1754493630468,0.001,3635.9,3635.7,2.75047121]
[1754493630771,0.4993,3635.8,3635.7,2.75047121]
[1754493631569,0.4993,3635.8,3635.6,2.88814111]
[1754493631803,0.4993,3635.7,3635.6,2.88814111]
[1754493632117,0.4993,3635.7,3635.1,3.22782925]
[1754493632118,0.4993,3635.7,3635.5,2.75062557]
[1754493632273,0.9302,3635.7,3635.6,2.75057762]
[1754493632478,0.001,3635.9,3635.3,0.4985]
[1754493632669,0.001,3635.9,3635.8,2.75042631]
[1754493633886,0.5003,3635.9,3635.8,2.75042631]
[1754493634096,0.5003,3635.9,3635.7,2.7504648]
[1754493634321,0.9302,3635.8,3635.6,2.88814415]
[1754493634468,0.4309,3635.8,3635.6,2.88814415]
[1754493634848,0.4993,3635.7,3635.6,2.88814415]
[1754493635418,0.001,3635.9,3635.8,2.75042631]
[1754493636327,0.001,3635.9,3635.8,3.86142631]
[1754493637213,0.001,3635.9,3635.8,2.88802631]
[1754493637714,0.5003,3635.9,3635.8,2.88802631]
[1754493638214,0.001,3635.9,3635.8,2.88802631]
[1754493638571,0.001,3635.9,3635.8,3.86142631]
[1754493639902,0.001,3635.9,3635.8,3.38652631]
[1754493640102,0.001,3635.9,3635.8,4.52262336]
[1754493640736,0.001,3635.9,3635.8,4.38502336]
[1754493640922,0.001,3635.9,3635.8,4.52262336]
[1754493641119,0.9312,3635.9,3635.8,0.1376]
[1754493641853,0.9312,3635.9,3635.2,2.7508563]
[1754493642010,0.4993,3635.8,3635.3,0.1376]
[1754493642358,0.4993,3635.8,3635.1,0.002]
[1754493642359,0.4993,3635.8,3635.5,2.88822314]
[1754493642527,0.9302,3635.7,3635.5,0.1376]
[1754493642729,5.3488,3635.6,3635.1,0.002]
[1754493642962,0.9302,3635.5,3635.1,0.002]
[1754493643452,0.9302,3635.4,3635.1,0.002]
[1754493643815,4.4186,3635.6,3635.1,0.002]
[1754493644051,0.9302,3635.3,3635.1,0.002]
[1754493644256,0.1376,3635.2,3635.1,0.002]
[1754493644455,3.81868028,3635.2,3635.1,0.002]
[1754493644659,42.10558278,3635.2,3635.1,0.002]
[1754493645439,41.64868028,3635.2,3635.1,0.002]
[1754493646360,34.0678,3635.2,3635.1,0.002]
[1754493646510,37.9169,3635.2,3635.1,0.002]
[1754493646707,41.09868028,3635.2,3635.1,0.002]
[1754493647111,48.85823149,3635.2,3635.1,0.002]
[1754493648524,41.64868028,3635.2,3635.1,0.002]
[1754493650543,48.85823149,3635.2,3635.1,0.002]
[1754493650860,41.64868028,3635.2,3635.1,0.002]
[1754493651062,37.9169,3635.2,3635.1,0.002]
[1754493651283,7.4176,3635.2,3635.1,0.002]
[1754493651564,0.1376,3635.2,3635.1,0.002]
[1754493651777,4.28,3635.2,3635.1,0.9176]
[1754493651916,0.1376,3635.4,3635.1,1.28466441]
[1754493652122,4.28,3635.3,3635.2,0.9156]
[1754493652421,4.28,3635.3,3635.2,3.66648028]
[1754493652621,4.28,3635.6,3635.2,1.57131319]
[1754493652821,0.001,3635.9,3635.8,2.75042631]
[1754493653149,4.281,3635.9,3635.8,2.88802631]
[1754493653534,4.281,3635.9,3635.8,0.1376]
[1754493654299,4.281,3635.9,3635.4,0.481]
[1754493654300,4.281,3635.9,3635.4,2.75067811]
[1754493654478,4.7337,3635.9,3635.6,0.1376]
[1754493654983,4.7337,3635.9,3635.5,0.1376]
[1754493654984,4.281,3635.9,3635.5,0.1376]
[1754493655915,0.4527,3635.8,3635.1,0.002]
[1754493656114,0.1376,3635.7,3635.2,0.1376]
[1754493656320,4.279,3635.6,3635.2,0.1376]
[1754493656515,0.9025,3635.5,3635.2,0.1376]
[1754493656691,0.9025,3635.5,3635.1,0.002]
[1754493656692,1.0401,3635.5,3635.1,0.002]
[1754493656893,0.9025,3635.4,3635.1,0.002]
[1754493657217,4.279,3635.3,3635.1,0.002]
[1754493657427,4.7317,3635.3,3635.1,0.002]
[1754493658329,0.4527,3635.2,3635.1,0.002]
[1754493658500,5.1815,3635.3,3635.1,0.002]
[1754493658700,4.279,3635.3,3635.1,0.002]
[1754493659103,4.7317,3635.3,3635.1,0.002]
[1754493659323,4.279,3635.3,3635.1,0.002]
[1754493659489,4.7317,3635.3,3635.1,0.002]
[1754493659890,0.4527,3635.2,3635.1,0.002]
[1754493660124,0.9025,3635.2,3635.1,0.002]
[1754493660319,3.79098028,3635.2,3635.1,0.002]
[1754493660638,7.34098028,3635.2,3635.1,0.002]
[1754493661001,37.34098028,3635.2,3635.1,0.002]
[1754493661207,37.79788278,3635.2,3635.1,0.002]
[1754493661735,37.34098028,3635.2,3635.1,0.002]
[1754493662232,41.61898028,3635.2,3635.1,0.002]
[1754493664322,33.1376,3635.2,3635.1,0.002]
[1754493664535,4.278,3635.2,3635.1,0.002]
[1754493664831,4.278,3635.2,3635.1,0.483]
[1754493665036,4.278,3635.2,3635.1,0.002]
[1754493665435,4.278,3635.2,3635.1,3.66855595]
[1754493665640,3.0,3635.4,3635.2,2.75086749]
[1754493665840,4.277,3635.2,3635.1,3.40881134]
[1754493665998,0.001,3635.9,3635.7,2.75044938]
[1754493666199,4.277,3635.8,3635.7,2.75044938]
[1754493666394,4.277,3635.8,3635.1,0.002]
[1754493666609,0.5903,3635.7,3635.1,0.1396]
[1754493666809,0.1376,3635.4,3635.1,0.002]
[1754493667010,4.277,3635.3,3635.1,0.002]
[1754493667209,5.1795,3635.3,3635.1,0.002]
[1754493667499,3.0,3635.7,3635.1,0.002]
[1754493667815,3.1376,3635.5,3635.1,0.002]
[1754493668200,3.5903,3635.5,3635.1,0.002]
[1754493668517,0.9025,3635.4,3635.1,0.002]
[1754493668876,0.1376,3635.2,3635.1,0.002]
[1754493669336,1.0401,3635.2,3635.1,0.002]
[1754493669540,0.5903,3635.2,3635.1,0.002]
[1754493669725,4.277,3635.3,3635.1,0.002]
[1754493669925,4.4146,3635.3,3635.1,0.002]
[1754493670127,3.0,3635.7,3635.1,2.75293891]
[1754493670429,0.1376,3635.5,3635.1,2.75293891]
[1754493670807,0.1376,3635.5,3635.2,3.23187534]
[1754493671107,4.4156,3635.6,3635.2,3.66646322]
[1754493671308,4.4156,3635.6,3635.3,0.9156]
[1754493671506,4.4156,3635.6,3635.3,3.6663822]
[1754493671898,0.1386,3635.6,3635.3,0.9156]
[1754493672098,4.277,3635.5,3635.3,0.9156]
[1754493672314,4.277,3635.5,3635.4,0.481]
[1754493672741,4.277,3635.5,3635.3,0.1376]
[1754493673566,4.277,3635.5,3635.3,2.88839465]
[1754493673767,4.277,3635.5,3635.3,0.1376]
[1754493673974,4.277,3635.5,3635.3,2.88837906]
[1754493674176,4.277,3635.5,3635.3,3.36937906]
[1754493674474,4.277,3635.5,3635.3,3.80397906]
[1754493674684,0.001,3635.6,3635.5,2.75065328]
[1754493674834,4.277,3635.6,3635.5,2.75065328]
[1754493675036,4.277,3635.6,3635.5,3.66625328]
[1754493675236,4.277,3635.6,3635.5,2.75065328]
[1754493675877,4.277,3635.6,3635.2,2.75082975]
[1754493676088,4.7297,3635.6,3635.3,0.1376]
[1754493676840,3.0,3635.5,3635.1,0.002]
[1754493677181,3.4527,3635.5,3635.1,0.002]
[1754493677333,0.9025,3635.4,3635.1,0.002]
[1754493677540,4.275,3635.3,3635.1,0.002]
[1754493677766,4.7277,3635.3,3635.1,0.002]
[1754493677951,4.275,3635.3,3635.1,0.002]
[1754493678153,4.275,3635.3,3635.1,2.75295498]
[1754493678485,4.275,3635.3,3635.1,0.002]
[1754493679360,0.4527,3635.2,3635.1,0.002]
[1754493679543,4.275,3635.3,3635.1,0.002]
[1754493680361,4.275,3635.3,3635.1,3.23389787]
[1754493680762,0.1376,3635.4,3635.2,2.75083259]
[1754493680975,4.275,3635.3,3635.2,3.66648028]
[1754493681279,0.001,3635.6,3635.3,2.75074639]
[1754493681449,0.001,3635.6,3635.5,2.75065328]
[1754493681642,0.001,3635.6,3635.5,2.91575981]
[1754493681842,0.001,3635.6,3635.5,3.80475328]
[1754493686086,0.001,3635.6,3635.5,3.83225981]
[1754493686398,0.001,3635.6,3635.5,4.5561309]
[1754493686585,0.001,3635.6,3635.5,4.52862437]
[1754493688092,0.001,3635.6,3635.5,3.61212437]
[1754493688463,0.001,3635.6,3635.5,4.52862437]
[1754493690281,0.001,3635.6,3635.5,4.07512437]
[1754493690666,0.001,3635.6,3635.5,3.61212437]
[1754493691294,0.001,3635.6,3635.5,2.88825328]
[1754493691494,0.9261,3635.6,3635.5,2.88825328]
[1754493691702,0.9261,3635.6,3635.5,0.1376]
[1754493691895,0.4906,3635.6,3635.5,2.88825328]
[1754493692270,0.4906,3635.6,3635.5,0.1376]
[1754493692512,0.4906,3635.6,3635.5,2.88825328]
[1754493692815,0.4906,3635.6,3635.5,0.1376]
[1754493693518,0.9261,3635.6,3635.5,0.1376]
[1754493694217,0.9261,3635.6,3635.1,0.002]
[1754493694218,0.9261,3635.6,3635.3,0.1376]
[1754493694376,0.9251,3635.5,3635.2,0.1376]
[1754493694772,0.9251,3635.4,3635.1,0.002]
[1754493694973,0.9251,3635.3,3635.1,0.002]
[1754493695192,0.9251,3635.2,3635.1,0.002]
[1754493695369,7.36358028,3635.2,3635.1,0.002]
[1754493695583,37.36358028,3635.2,3635.1,0.002]
[1754493695914,41.63458028,3635.2,3635.1,0.002]
[1754493699196,37.36358028,3635.2,3635.1,0.002]
[1754493699394,38.3347,3635.2,3635.1,0.002]
[1754493699783,41.08558028,3635.2,3635.1,0.002]
[1754493700116,41.63558028,3635.2,3635.1,0.002]
[1754493700321,50.96747707,3635.2,3635.1,0.002]
[1754493700487,42.09248278,3635.2,3635.1,0.002]
[1754493700689,41.63458028,3635.2,3635.1,0.002]
[1754493701570,41.70086127,3635.2,3635.1,0.002]
[1754493701771,41.83846127,3635.2,3635.1,0.002]
[1754493702488,37.56746127,3635.2,3635.1,0.002]
[1754493702702,41.83846127,3635.2,3635.1,0.002]
[1754493703098,41.28846127,3635.2,3635.1,0.002]
[1754493703491,37.56746127,3635.2,3635.1,0.002]
[1754493703691,41.83846127,3635.2,3635.1,0.002]
[1754493703892,34.81658099,3635.2,3635.1,0.002]
[1754493704106,41.83846127,3635.2,3635.1,0.002]
[1754493705023,2.75161353,3635.6,3635.1,0.002]
[1754493705024,0.001,3635.6,3635.1,0.002]
[1754493705319,0.001,3635.6,3635.2,0.9165]
[1754493705320,34.271,3635.5,3635.2,0.9165]
[1754493705522,3.0,3635.4,3635.2,0.9165]
[1754493705686,3.0,3635.4,3635.2,0.463]
[1754493706026,3.0,3635.4,3635.1,0.002]
[1754493706599,3.0,3635.4,3635.3,2.75080461]
[1754493706794,4.271,3635.5,3635.3,3.21380461]
[1754493707042,4.271,3635.5,3635.4,0.9165]
[1754493707237,0.001,3635.6,3635.5,2.75065328]
[1754493707553,7.272,3635.6,3635.5,3.66715328]
[1754493707701,0.001,3635.6,3635.5,3.66715328]
[1754493707905,4.272,3635.6,3635.5,3.66715328]
[1754493708099,4.272,3635.6,3635.5,4.37314966]
[1754493709848,0.001,3635.9,3635.5,4.37314966]
[1754493710009,1e-08,3635.9,3635.8,2.75042631]
[1754493710438,1e-08,3635.9,3635.8,3.66692631]
[1754493710663,1e-08,3636.2,3635.9,2.75035066]
[1754493710833,1e-08,3636.3,3636.1,2.75019938]
[1754493711034,1e-08,3636.4,3636.3,2.75004812]
[1754493711563,1e-08,3636.4,3636.3,3.68044812]
[1754493712470,1e-08,3636.4,3636.3,3.7079486]
[1754493712627,1e-08,3636.4,3636.3,5.62361402]
[1754493712826,1e-08,3636.4,3636.3,5.59611354]
[1754493714561,1e-08,3636.4,3636.3,4.66571354]
[1754493714767,1e-08,3636.4,3636.3,3.68044812]
[1754493714953,1e-08,3636.4,3636.3,2.75004812]
[1754493715151,1e-08,3636.4,3636.3,0.1376]
[1754493715337,1e-08,3636.4,3636.3,1.068]
[1754493715536,1e-08,3636.4,3636.3,0.1376]
[1754493715742,1e-08,3636.4,3636.3,2.88764812]
[1754493716354,1e-08,3636.4,3636.3,0.1376]
[1754493716556,1e-08,3636.4,3636.3,2.88764812]
[1754493716874,1e-08,3636.4,3636.3,0.1376]
[1754493717030,1e-08,3636.4,3636.3,2.88764812]
[1754493717235,1e-08,3636.4,3636.3,3.81804812]
[1754493717849,1e-08,3636.4,3636.3,4.47487245]
[1754493718574,1e-08,3636.4,3636.3,0.79442433]
[1754493718743,1e-08,3636.4,3636.1,2.75017731]
[1754493718944,0.48340001,3636.4,3636.2,2.88771805]
[1754493719428,1e-08,3636.4,3636.2,0.1376]
[1754493719936,0.48340001,3636.4,3636.2,0.1376]
[1754493720768,1e-08,3636.4,3636.3,3.81804812]
[1754493720945,1e-08,3636.4,3636.3,3.54447082]
[1754493721777,1e-08,3636.4,3636.3,4.47487082]
[1754493723260,1e-08,3636.4,3636.3,4.5023713]
[1754493723644,1e-08,3636.4,3636.3,4.47487082]
[1754493724469,1e-08,3636.4,3636.3,4.5023713]
[1754493724774,1e-08,3636.4,3636.3,8.74187082]
[1754493725162,1e-08,3636.4,3636.3,4.47487082]
[1754493725565,1e-08,3636.4,3636.3,3.54447082]
[1754493726138,1e-08,3636.4,3636.3,4.47487082]
[1754493726377,1e-08,3636.4,3636.3,4.5023713]
[1754493726584,1e-08,3636.4,3636.3,3.54447082]
[1754493726942,1e-08,3636.4,3636.3,0.1376]
[1754493727450,2.75016752,3636.2,3635.5,0.622]
[1754493727776,2.75016752,3636.2,3635.1,0.002]
[1754493727777,0.9279,3636.1,3635.1,0.002]
[1754493728077,0.9279,3636.1,3635.6,0.1376]
[1754493728380,0.9279,3636.1,3635.1,0.47466]
[1754493728381,2.75039788,3635.9,3635.1,0.002]
[1754493728536,0.9279,3636.0,3635.3,2.75076011]
[1754493728848,0.9279,3636.0,3635.5,0.1376]
[1754493729046,0.4834,3636.0,3635.2,2.75088028]
[1754493729229,0.4834,3636.0,3635.7,0.1376]
[1754493729835,0.4834,3635.9,3635.7,0.1376]
[1754493730978,3.0,3636.1,3635.7,0.1376]
[1754493730979,0.4834,3635.8,3635.7,0.1376]
[1754493731285,0.4445,3636.0,3635.7,0.1376]
[1754493731492,3.0,3636.1,3635.8,2.75041543]
[1754493731692,2.74975415,3636.7,3635.9,1.63185928]
[1754493731693,4.266,3636.7,3635.9,1.63185928]
[1754493731990,3.0,3636.6,3635.7,2.7504364]
[1754493732189,0.5234,3636.9,3636.3,2.75004812]
[1754493732679,0.04,3636.9,3636.3,3.68044812]
[1754493732900,0.04,3636.9,3636.3,3.81804812]
[1754493733100,0.04,3636.9,3636.3,4.4748662]
[1754493733596,0.04,3636.9,3636.3,4.50236668]
[1754493734391,0.04,3636.9,3636.3,8.76836668]
[1754493734593,0.04,3636.9,3636.3,11.7408662]
[1754493734902,0.001,3637.2,3637.1,2.74944323]
[1754493735106,1e-08,3637.2,3637.1,2.77693766]
[1754493735464,1e-08,3637.2,3637.1,3.67984323]
[1754493735982,1e-08,3637.2,3637.1,3.20604323]
[1754493736274,1e-08,3637.2,3637.1,3.67984323]
[1754493736460,1e-08,3637.2,3637.1,4.59773303]
[1754493737078,1e-08,3637.2,3637.1,4.62522746]
[1754493737911,1e-08,3637.2,3637.1,4.73538146]
[1754493738898,1e-08,3637.2,3637.1,9.00138146]
[1754493739068,1e-08,3637.2,3637.1,8.97388703]
[1754493739399,1e-08,3637.2,3637.1,4.70788703]
[1754493739593,1e-08,3637.2,3637.1,9.00038146]
[1754493739782,1e-08,3637.2,3637.1,8.97288703]
[1754493740377,1e-08,3637.2,3637.1,11.97288703]
[1754493742821,1e-08,3637.2,3637.1,7.70788703]
[1754493743024,1e-08,3637.2,3637.1,11.04148703]
[1754493743320,1e-08,3637.2,3637.1,11.88983303]
[1754493744283,1e-08,3637.2,3637.1,11.99998803]
[1754493744790,0.04,3637.9,3637.1,11.99998803]
[1754493744791,0.04,3637.9,3637.8,2.74891417]
[1754493745110,0.04,3637.9,3637.8,10.59019434]
[1754493745284,0.04,3637.9,3637.8,11.6588052]
[1754493745794,0.04,3637.9,3637.8,12.2088052]
[1754493745795,1e-08,3637.9,3637.8,12.2088052]
[1754493746733,1e-08,3637.9,3637.8,11.6588052]
[1754493747287,1e-08,3637.9,3637.8,10.6993052]
[1754493747513,1e-08,3637.9,3637.8,6.4363052]
[1754493747676,0.45370001,3637.9,3637.8,3.4363052]
[1754493747902,1e-08,3637.9,3637.8,7.6993052]
[1754493748549,0.88760001,3637.9,3637.8,0.1376]
[1754493750312,0.88760001,3637.9,3637.0,2.74951883]
[1754493750653,0.8876,3637.8,3637.2,2.74936006]
[1754493750826,0.8876,3637.8,3636.8,5.777118]
[1754493751153,0.4537,3637.7,3637.6,0.1376]
[1754493751357,0.8876,3637.7,3637.6,0.1376]
[1754493751650,0.8876,3637.7,3637.5,0.1376]
[1754493752153,1e-08,3637.9,3637.6,0.1376]
[1754493752456,0.4537,3637.7,3637.6,0.1376]
[1754493752749,0.8876,3637.7,3637.6,0.1376]
[1754493755311,0.4537,3637.7,3637.6,0.1376]
[1754493755855,0.8876,3637.7,3637.6,0.1376]
[1754493757056,0.8876,3637.7,3637.3,2.7492722]
[1754493757231,0.4537,3637.6,3637.5,0.1376]
[1754493757915,0.8876,3637.6,3637.5,0.1376]
[1754493758344,0.4537,3637.6,3637.5,0.1376]
[1754493758526,0.45370001,3637.9,3637.5,2.8866826]
[1754493758747,0.45370001,3637.9,3637.7,0.1376]
[1754493759123,0.4537,3637.8,3637.7,0.1376]
[1754493759440,1e-08,3637.9,3637.7,0.1376]
[1754493760061,0.45370001,3637.9,3637.7,0.1376]
[1754493760265,0.4537,3637.8,3637.7,0.1376]
[1754493760466,0.8876,3637.8,3637.7,2.88658974]
[1754493760761,1e-08,3637.9,3637.7,0.1376]
[1754493760968,1e-08,3637.9,3637.7,2.88658826]
[1754493761168,0.4537,3637.8,3637.7,0.1376]
[1754493761465,0.8876,3637.8,3637.7,0.1376]
[1754493761655,0.8886,3637.8,3637.7,0.1376]
[1754493762229,0.001,3637.8,3637.7,2.88658974]
[1754493762431,0.001,3637.8,3637.7,0.1376]
[1754493762868,0.001,3637.8,3637.7,2.88658974]
[1754493764780,0.001,3637.8,3637.7,0.1376]
[1754493764980,30.0,3637.7,3637.1,0.002]
[1754493765134,2.74936764,3637.2,3637.1,0.002]
[1754493765334,36.17899407,3637.2,3637.1,0.002]
[1754493765573,37.06659407,3637.2,3637.1,0.002]
[1754493765977,3.8876,3637.2,3637.1,0.002]
[1754493766139,36.63696764,3637.2,3637.1,0.002]
[1754493766956,37.18696764,3637.2,3637.1,0.002]
[1754493767876,46.51886443,3637.2,3637.1,0.002]
[1754493768042,46.94849086,3637.2,3637.1,0.002]
[1754493769393,37.18696764,3637.2,3637.1,0.002]
[1754493769547,41.44896764,3637.2,3637.1,0.002]
[1754493770740,37.18696764,3637.2,3637.1,0.002]
[1754493771090,41.58656764,3637.2,3637.1,0.002]
[1754493772190,38.58656764,3637.2,3637.1,0.002]
[1754493772392,37.8533,3637.2,3637.1,0.002]
[1754493772544,37.60266764,3637.2,3637.1,0.002]
[1754493772746,37.8533,3637.2,3637.1,0.002]
[1754493772943,30.1376,3637.2,3637.1,0.002]
[1754493773172,4.262,3637.2,3637.1,0.002]
[1754493773547,41.48586764,3637.2,3637.1,0.002]
[1754493777166,41.91549407,3637.2,3637.1,0.002]
[1754493777751,42.17183983,3637.2,3637.1,0.002]
[1754493777961,41.7422134,3637.2,3637.1,0.002]
[1754493778859,0.25634576,3637.2,3637.1,0.002]
[1754493779074,0.25634576,3637.5,3637.1,0.9387]
[1754493779261,34.262,3637.4,3637.2,0.4772]
[1754493779455,34.262,3637.4,3637.1,0.002]
[1754493779456,0.25634576,3637.3,3637.1,0.002]
[1754493779688,3.25634576,3637.3,3637.1,0.002]
[1754493779889,4.262,3637.4,3637.3,2.74929205]
[1754493780106,0.001,3637.8,3637.5,2.74914074]
[1754493780262,4.262,3637.7,3637.5,2.74914074]
[1754493780458,4.262,3637.7,3637.6,3.68576531]
[1754493780662,0.001,3637.8,3637.7,2.74898974]
[1754493780914,0.001,3637.8,3637.7,4.32917279]
[1754493781278,0.001,3637.8,3637.7,4.35666268]
[1754493781660,0.001,3637.8,3637.7,4.32917279]
[1754493782572,0.001,3637.8,3637.7,3.39247279]
[1754493782789,0.001,3637.8,3637.3,0.9367]
[1754493783099,0.001,3637.8,3637.6,0.4772]
[1754493783405,0.001,3637.8,3637.7,0.9367]
[1754493783565,0.001,3637.8,3637.7,3.68568974]
[1754493783764,0.001,3637.8,3637.3,2.74927522]
[1754493783973,0.001,3637.8,3637.4,0.4772]
[1754493784378,0.001,3637.8,3637.4,0.9367]
[1754493784581,0.001,3637.8,3637.1,0.002]
[1754493785385,0.001,3637.8,3637.2,2.74936696]
[1754493785791,0.001,3637.8,3637.3,0.4772]
[1754493786023,0.001,3637.8,3637.1,0.002]
[1754493786326,2.7490916,3637.6,3637.1,0.002]